[Event "EYCC Open U8 2018"]
[Site "Riga"]
[Date "2018.08.22"]
[Round "3"]
[White "Lebedev, Artem S"]
[Black "Azadaliyev, Jahandar"]
[Result "1/2-1/2"]
[ECO "B12"]
[WhiteElo "1334"]
[BlackElo "1732"]
[Annotator "NA"]
[PlyCount "186"]
[EventDate "2018.08.20"]
[EventType "swiss"]
[EventCountry "LAT"]
[SourceTitle "playchess.com"]
[Source "ChessBase"]
[SourceQuality "1"]
[TimeControl "40/5400+30:1800+30"]

1. e4 {[%emt 0:00:00]} c6 {[%emt 0:00:00]} 2. d4 {[%emt 0:00:00]} d5 {[%emt 0:00:00]} 3. f3 {[%emt 0:00:00]} dxe4 {[%emt 0:00:06]} 4. fxe4 {[%emt 0:00:00]} e5 {[%emt 0:00:06]} 5. Nf3 {[%emt 0:00:03]} Be6 {[%emt 0:00:10]} 6. Be3 {[%emt 0:00:54]} Nf6 {[%emt 0:00:22]} 7. Bd3 {[%emt 0:00:42]} Nbd7 {[%emt 0:00:40]} 8. O-O {[%emt 0:01:31]} Bd6 {[%emt 0:06:48]} 9. Nbd2 {[%emt 0:03:49]} Qc7 {[%emt 0:00:32]} 10. Qe1 {[%emt 0:07:33]} O-O-O {[%emt 0:00:43]} 11. c4 {[%emt 0:03:39]} exd4 {[%emt 0:00:42]} 12. Bxd4 {[%emt 0:00:24]} Ng4 {[%emt 0:03:59]} 13. Qh4 {[%emt 0:05:01]} Nge5 {[%emt 0:01:15]} 14. Be2 {[%emt 0:04:40]} c5 {[%emt 0:00:51]} 15. Be3 {[%emt 0:02:11]} h6 {[%emt 0:01:22]} 16. Nxe5 {[%emt 0:13:06]} Nxe5 {[%emt 0:03:50]} 17. b4 {[%emt 0:02:07]} Ng6 {[%emt 0:00:22]} 18. Qh5 {[%emt 0:21:31]} Bf4 {[%emt 0:02:01]} 19. Qf3 {[%emt 0:03:57]} Bxh2+ {[%emt 0:00:48]} 20. Kh1 {[%emt 0:00:30]} Be5 {[%emt 0:02:04]} 21. Rab1 {[%emt 0:01:54]} h5 {[%emt 0:02:22]} 22. bxc5 {[%emt 0:01:19]} h4 {[%emt 0:02:27]} 23. c6 {[%emt 0:00:35]} Qxc6 {[%emt 0:01:09]} 24. Rb5 {[%emt 0:01:43]} h3 {[%emt 0:02:30]} 25. g3 {[%emt 0:01:46]} Bd4 {[%emt 0:01:36]} 26. Nb3 {[%emt 0:01:55]} Ne5 {[%emt 0:06:12]} 27. Nxd4 {[%emt 0:04:57]} Nxf3 {[%emt 0:02:12]} 28. Nxc6 {[%emt 0:00:10]} bxc6 {[%emt 0:00:03]} 29. Rb4 {[%emt 0:00:31]} Nd2 {[%emt 0:01:40]} 30. Bxd2 {[%emt 0:00:55]} Rxd2 {[%emt 0:00:07]} 31. Rfb1 {[%emt 0:00:12]} Kc7 {[%emt 0:00:53]} 32. e5 {[%emt 0:01:55]} Rxe2 {[%emt 0:00:55]} 33. Rb7+ {[%emt 0:00:11]} Kd8 {[%emt 0:00:08]} 34. Rxa7 {[%emt 0:01:12]} Rd2 {[%emt 0:01:02]} 35. a4 {[%emt 0:00:50]} h2 {[%emt 0:01:33]} 36. Rb8+ {[%emt 0:00:22]} Bc8 {[%emt 0:00:07]} 37. Rxc8+ {[%emt 0:00:10]} Kxc8 {[%emt 0:00:22]} 38. Ra8+ {[%emt 0:00:06]} Kd7 {[%emt 0:00:58]} 39. Rxh8 {[%emt 0:00:09]} Ra2 {[%emt 0:00:20]} 40. Rh7 {[%emt 0:00:00]} Rxa4 {[%emt 0:00:00]} 41. Rxg7 {[%emt 0:01:14]} Ke6 {[%emt 0:00:37]} 42. Kxh2 {[%emt 0:00:41]} Rxc4 {[%emt 0:00:04]} 43. Kg2 {[%emt 0:00:31]} Re4 {[%emt 0:00:11]} 44. Kf3 {[%emt 0:00:47]} Rxe5 {[%emt 0:00:06]} 45. Kf4 {[%emt 0:00:25]} Re1 {[%emt 0:00:34]} 46. Rg8 {[%emt 0:00:15]} Kf6 {[%emt 0:00:28]} 47. Rc8 {[%emt 0:00:18]} Rc1 {[%emt 0:00:06]} 48. Kg4 {[%emt 0:00:55]} Rc4+ {[%emt 0:00:12]} 49. Kh5 {[%emt 0:00:38]} Rc5+ {[%emt 0:00:17]} 50. Kg4 {[%emt 0:00:13]} Rc1 {[%emt 0:00:04]} 51. Kf4 {[%emt 0:00:13]} Rc4+ {[%emt 0:00:30]} 52. Kf3 {[%emt 0:00:32]} c5 {[%emt 0:01:06]} 53. Ke3 {[%emt 0:00:44]} Ke5 {[%emt 0:00:19]} 54. Kd3 {[%emt 0:00:22]} Rd4+ {[%emt 0:00:24]} 55. Kc3 {[%emt 0:00:07]} Ke4 {[%emt 0:01:12]} 56. Rxc5 {[%emt 0:00:33]} Rd3+ {[%emt 0:00:08]} 57. Kc2 {[%emt 0:00:10]} Rxg3 {[%emt 0:00:04]} 58. Kd2 {[%emt 0:00:21]} Rg2+ {[%emt 0:00:10]} 59. Ke1 {[%emt 0:00:18]} f5 {[%emt 0:00:04]} 60. Kf1 {[%emt 0:00:30]} Ra2 {[%emt 0:00:04]} 61. Rc3 {[%emt 0:00:25]} f4 {[%emt 0:01:36]} 62. Rb3 {[%emt 0:00:15]} Rh2 {[%emt 0:00:29]} 63. Ra3 {[%emt 0:00:27]} Rb2 {[%emt 0:00:32]} 64. Rc3 {[%emt 0:00:20]} Rb8 {[%emt 0:00:24]} 65. Kf2 {[%emt 0:00:25]} Rh8 {[%emt 0:00:21]} 66. Rb3 {[%emt 0:00:34]} Rh2+ {[%emt 0:00:11]} 67. Kf1 {[%emt 0:00:28]} Kd4 {[%emt 0:00:39]} 68. Ra3 {[%emt 0:00:25]} Rb2 {[%emt 0:00:30]} 69. Rf3 {[%emt 0:00:55]} Rb1+ {[%emt 0:01:16]} 70. Kf2 {[%emt 0:00:12]} Rb2+ {[%emt 0:00:18]} 71. Kf1 {[%emt 0:00:06]} Rb1+ {[%emt 0:00:04]} 72. Kf2 {[%emt 0:00:07]} Ke4 {[%emt 0:00:05]} 73. Ra3 {[%emt 0:00:13]} Rb8 {[%emt 0:00:57]} 74. Rc3 {[%emt 0:00:21]} Re8 {[%emt 0:00:25]} 75. Ra3 {[%emt 0:00:30]} Rc8 {[%emt 0:00:16]} 76. Rb3 {[%emt 0:00:15]} Rc2+ {[%emt 0:00:08]} 77. Kf1 {[%emt 0:00:24]} Ra2 {[%emt 0:00:49]} 78. Rc3 {[%emt 0:00:14]} Kf5 {[%emt 0:00:23]} 79. Rb3 {[%emt 0:00:28]} Kg4 {[%emt 0:00:22]} 80. Rc3 {[%emt 0:00:12]} Kg5 {[%emt 0:00:43]} 81. Rb3 {[%emt 0:00:25]} Kh4 {[%emt 0:00:28]} 82. Rc3 {[%emt 0:00:16]} Kg4 {[%emt 0:00:20]} 83. Rb3 {[%emt 0:00:08]} Ra1+ {[%emt 0:00:27]} 84. Kf2 {[%emt 0:00:09]} Rh1 {[%emt 0:00:13]} 85. Rc3 {[%emt 0:00:23]} Rh2+ {[%emt 0:00:14]} 86. Kf1 {[%emt 0:00:16]} f3 {[%emt 0:00:49]} 87. Rc8 {[%emt 0:00:11]} Rh5 {[%emt 0:00:07]} 88. Rg8+ {[%emt 0:00:12]} Rg5 {[%emt 0:00:05]} 89. Rxg5+ {[%emt 0:00:10]} Kxg5 {[%emt 0:00:01]} 90. Kf2 {[%emt 0:00:12]} Kf4 {[%emt 0:00:06]} 91. Kf1 {[%emt 0:00:06]} Kg3 {[%emt 0:00:05]} 92. Kg1 {[%emt 0:00:02]} f2+ {[%emt 0:00:08]} 93. Kf1 {[%emt 0:00:07]} Kf3 {[%emt 0:00:02]} 1/2-1/2

[Event "EYCC Open U8 2018"]
[Site "Riga"]
[Date "2018.08.22"]
[Round "3"]
[White "Zmarzly, Wiktor"]
[Black "Averin, Nikolay"]
[Result "0-1"]
[ECO "D35"]
[WhiteElo "1305"]
[BlackElo "1438"]
[Annotator "NA"]
[PlyCount "84"]
[EventDate "2018.08.20"]
[EventType "swiss"]
[EventCountry "LAT"]
[SourceTitle "playchess.com"]
[Source "ChessBase"]
[SourceQuality "1"]
[TimeControl "40/5400+30:1800+30"]

1. d4 {[%emt 0:00:00]} d5 {[%emt 0:00:00]} 2. c4 {[%emt 0:00:00]} e6 {[%emt 0:00:00]} 3. Nc3 {[%emt 0:00:34]} Nf6 {[%emt 0:00:00]} 4. cxd5 {[%emt 0:00:37]} exd5 {[%emt 0:00:00]} 5. Bg5 {[%emt 0:00:54]} Nbd7 {[%emt 0:00:00]} 6. e3 {[%emt 0:01:01]} c6 {[%emt 0:00:00]} 7. Bd3 {[%emt 0:00:35]} Bd6 {[%emt 0:00:00]} 8. Qc2 {[%emt 0:02:41]} Nf8 {[%emt 0:00:25]} 9. Nge2 {[%emt 0:00:57]} Ng6 {[%emt 0:00:40]} 10. e4 {[%emt 0:02:24]} dxe4 {[%emt 0:00:45]} 11. Bxe4 {[%emt 0:01:40]} O-O {[%emt 0:14:16]} 12. Rd1 {[%emt 0:02:23]} a6 {[%emt 0:05:49]} 13. d5 {[%emt 0:01:07]} c5 {[%emt 0:01:50]} 14. Na4 {[%emt 0:06:51]} Re8 {[%emt 0:05:51]} 15. Bxg6 {[%emt 0:04:44]} hxg6 {[%emt 0:00:16]} 16. O-O {[%emt 0:11:09]} b5 {[%emt 0:14:40]} 17. Nac3 {[%emt 0:01:54]} Bf5 {[%emt 0:02:42]} 18. Qc1 {[%emt 0:01:51]} b4 {[%emt 0:03:55]} 19. Na4 {[%emt 0:02:23]} Rxe2 {[%emt 0:01:16]} 20. Be3 {[%emt 0:01:00]} Bc2 {[%emt 0:17:49]} 21. h3 {[%emt 0:01:02]} Bxa4 {[%emt 0:00:51]} 22. Rd3 {[%emt 0:00:06]} Bb5 {[%emt 0:00:28]} 23. Rdd1 {[%emt 0:00:20]} Rc8 {[%emt 0:02:20]} 24. b3 {[%emt 0:00:31]} Qa5 {[%emt 0:01:58]} 25. Rd2 {[%emt 0:00:29]} Rxd2 {[%emt 0:00:42]} 26. Qxd2 {[%emt 0:00:01]} Bxf1 {[%emt 0:00:17]} 27. Kxf1 {[%emt 0:00:04]} Qb5+ {[%emt 0:00:16]} 28. Qe2 {[%emt 0:00:09]} Nxd5 {[%emt 0:00:10]} 29. Qxb5 {[%emt 0:00:11]} axb5 {[%emt 0:00:03]} 30. g4 {[%emt 0:00:13]} Ra8 {[%emt 0:00:03]} 31. h4 {[%emt 0:00:10]} Rxa2 {[%emt 0:00:05]} 32. h5 {[%emt 0:00:09]} Rb2 {[%emt 0:00:09]} 33. hxg6 {[%emt 0:00:08]} fxg6 {[%emt 0:00:02]} 34. g5 {[%emt 0:00:15]} Rxb3 {[%emt 0:00:04]} 35. Ke2 {[%emt 0:00:09]} c4 {[%emt 0:00:06]} 36. Kd2 {[%emt 0:00:13]} Rb2+ {[%emt 0:00:08]} 37. Kc1 {[%emt 0:00:08]} c3 {[%emt 0:00:02]} 38. Ba7 {[%emt 0:00:23]} b3 {[%emt 0:00:12]} 39. f4 {[%emt 0:00:09]} Bxf4+ {[%emt 0:00:12]} 40. Be3 {[%emt 0:00:00]} Bxe3+ {[%emt 0:00:00]} 41. Kd1 {[%emt 0:00:22]} Nf4 {[%emt 0:00:23]} 42. Ke1 {[%emt 0:00:13]} Rb1# {[%emt 0:00:02]} 0-1

[Event "EYCC Open U8 2018"]
[Site "Riga"]
[Date "2018.08.23"]
[Round "4"]
[White "Azadaliyev, Jahandar"]
[Black "Durucay, Uygar"]
[Result "1-0"]
[ECO "D35"]
[WhiteElo "1732"]
[BlackElo "1263"]
[Annotator "NA RC"]
[PlyCount "117"]
[EventDate "2018.08.20"]
[EventType "swiss"]
[EventCountry "LAT"]
[SourceTitle "playchess.com"]
[Source "ChessBase"]
[SourceQuality "1"]
[TimeControl "40/5400+30:1800+30"]

1. d4 {[%emt 0:00:00]} e6 {[%emt 0:00:51]} 2. c4 {[%emt 0:00:33]} d5 {[%emt 0:00:21]} 3. Nc3 {[%emt 0:00:57]} Nf6 {[%emt 0:01:04]} 4. cxd5 {[%emt 0:01:13]} exd5 {[%emt 0:00:42]} 5. Bg5 {[%emt 0:00:47]} c6 {[%emt 0:02:16]} 6. e3 {[%emt 0:00:18]} Nbd7 {[%emt 0:00:57]} 7. Bd3 {[%emt 0:00:55]} Be7 {[%emt 0:01:08]} 8. Nge2 {[%emt 0:00:43]} O-O {[%emt 0:01:09]} 9. Qc2 {[%emt 0:03:27]} Re8 {[%emt 0:01:18]} 10. O-O {[%emt 0:00:15]} Nf8 {[%emt 0:00:31]} 11. f3 {[%emt 0:02:40]} Be6 {[%emt 0:03:43]} 12. a3 {[%emt 0:10:59]} Rc8 {[%emt 0:04:08]} 13. b4 {[%emt 0:02:05]} a6 {[%emt 0:01:32]} 14. Rab1 {[%emt 0:01:33]} Qc7 {[%emt 0:17:29]} 15. a4 {[%emt 0:02:33]} Ng6 {[%emt 0:04:59]} 16. f4 {[%emt 0:07:18]} Ng4 {[%emt 0:01:16]} 17. Bxe7 {[%emt 0:02:03]} Nxe3 {[%emt 0:00:50]} 18. Qc1 {[%emt 0:00:20]} Nxf1 {[%emt 0:00:12]} 19. Bxg6 {[%emt 0:02:34]} Rxe7 {[%emt 0:01:02]} 20. Bd3 {[%emt 0:01:30]} Nxh2 {[%emt 0:04:51]} 21. Kxh2 {[%emt 0:00:15]} Rce8 {[%emt 0:01:41]} 22. Ng3 {[%emt 0:09:35]} Bg4 {[%emt 0:05:14]} 23. Bf5 {[%emt 0:01:22]} h5 {[%emt 0:08:38]} 24. Bxg4 {[%emt 0:01:18]} hxg4 {[%emt 0:00:12]} 25. Qd2 {[%emt 0:03:57]} Re6 {[%emt 0:06:31]} 26. Rf1 {[%emt 0:02:43]} Rh6+ {[%emt 0:01:49]} 27. Kg1 {[%emt 0:00:09]} Qd8 {[%emt 0:02:35]} 28. Kf2 {[%emt 0:04:00]} Qf6 {[%emt 0:05:07]} 29. Kg1 {[%emt 0:00:36]} Rh4 {[%emt 0:06:16]} 30. Kf2 {[%emt 0:03:38]} Rh6 {[%emt 0:02:20]} 31. Kg1 {[%emt 0:00:59]} Rh4 {[%emt 0:04:46]} 32. Kf2 {[%emt 0:00:31]} Qh6 {[%emt 0:02:10]} 33. Nf5 {[%emt 0:00:36]} g3+ {[%emt 0:00:31]} 34. Kxg3 {[%emt 0:00:15]} Qg6+ {[%emt 0:01:25]} 35. Kxh4 {[%emt 0:00:16]} Qxf5 {[%emt 0:00:44]} 36. g4 {[%emt 0:00:41]} Qh7+ {[%emt 0:02:56]} 37. Kg3 {[%emt 0:00:08]} Re6 {[%emt 0:00:23]} 38. f5 {[%emt 0:00:29]} Rh6 {[%emt 0:00:16]} 39. Qg2 {[%emt 0:00:08]} Rh4 {[%emt 0:00:36]} 40. Nd1 {[%emt 0:00:00]} Qh6 {[%emt 0:00:00]} 41. Re1 {[%emt 0:02:58]} Qg5 {[%emt 0:02:59]} 42. Nf2 {[%emt 0:00:25]} Rh6 {[%emt 0:00:37]} 43. Nd3 {[%emt 0:02:27]} Rh4 {[%emt 0:01:19]} 44. Qf3 {[%emt 0:01:33]} Qh6 {[%emt 0:00:49]} 45. Nf4 {[%emt 0:04:14]} Rh2 {[%emt 0:07:33]} 46. Nh5 {[%emt 0:02:55]} Rb2 {[%emt 0:00:28]} 47. Re8+ {[%emt 0:00:36]} Kh7 {[%emt 0:00:17]} 48. Qf4 {[%emt 0:01:36]} Rb3+ {[%emt 0:01:25]} 49. Kh4 {[%emt 0:02:47]} Qxf4 {[%emt 0:01:41]} 50. Nxf4 {[%emt 0:00:08]} Rxb4 {[%emt 0:00:07]} 51. Nh3 {[%emt 0:01:03]} f6 {[%emt 0:00:27]} 52. g5 {[%emt 0:00:18]} Rxd4+ {[%emt 0:00:09]} 53. Kh5 {[%emt 0:00:07]} g6+ {[%emt 0:00:43]} 54. fxg6+ {[%emt 0:00:05]} Kg7 {[%emt 0:00:05]} 55. Re7+ {[%emt 0:00:06]} Kf8 {[%emt 0:00:38]} 56. gxf6 {[%emt 0:00:05]} Re4 {[%emt 0:00:54]} 57. g7+ {[%emt 0:00:07]} Kg8 {[%emt 0:00:12]} 58. Kg6 {[%emt 0:00:08]} Rg4+ {[%emt 0:00:26]} 59. Ng5 {[%emt 0:00:15]} 1-0

[Event "EYCC Open U8 2018"]
[Site "Riga"]
[Date "2018.08.23"]
[Round "4"]
[White "Zheng, Harry Z"]
[Black "Yasmo, Daniil"]
[Result "0-1"]
[ECO "B01"]
[WhiteElo "1530"]
[BlackElo "1261"]
[Annotator "NA RC"]
[PlyCount "120"]
[EventDate "2018.08.20"]
[EventType "swiss"]
[EventCountry "LAT"]
[SourceTitle "playchess.com"]
[Source "ChessBase"]
[SourceQuality "1"]
[TimeControl "40/5400+30:1800+30"]

1. e4 {[%emt 0:00:00]} d5 {[%emt 0:00:00]} 2. exd5 {[%emt 0:00:00]} Qxd5 {[%emt 0:00:00]} 3. Nc3 {[%emt 0:00:00]} Qa5 {[%emt 0:00:00]} 4. Bc4 {[%emt 0:00:00]} e6 {[%emt 0:01:35]} 5. d3 {[%emt 0:00:13]} Nf6 {[%emt 0:02:13]} 6. Nf3 {[%emt 0:01:08]} Be7 {[%emt 0:01:08]} 7. Bd2 {[%emt 0:01:21]} Qb6 {[%emt 0:00:22]} 8. O-O {[%emt 0:04:23]} O-O {[%emt 0:02:28]} 9. Qe2 {[%emt 0:12:31]} c5 {[%emt 0:22:04]} 10. Bb3 {[%emt 0:16:15]} Nc6 {[%emt 0:06:09]} 11. Ne4 {[%emt 0:06:36]} Nd4 {[%emt 0:08:43]} 12. Nxd4 {[%emt 0:00:52]} cxd4 {[%emt 0:00:09]} 13. Bg5 {[%emt 0:03:46]} Qd8 {[%emt 0:01:20]} 14. Nxf6+ {[%emt 0:01:06]} Bxf6 {[%emt 0:00:07]} 15. Bxf6 {[%emt 0:00:18]} Qxf6 {[%emt 0:00:15]} 16. Qe4 {[%emt 0:00:40]} Rd8 {[%emt 0:07:12]} 17. a4 {[%emt 0:03:54]} Qg6 {[%emt 0:04:21]} 18. Qf3 {[%emt 0:00:27]} Rb8 {[%emt 0:05:48]} 19. Qf4 {[%emt 0:00:21]} Bd7 {[%emt 0:03:34]} 20. f3 {[%emt 0:01:14]} Bc6 {[%emt 0:01:40]} 21. a5 {[%emt 0:00:49]} Qf6 {[%emt 0:05:18]} 22. Qxf6 {[%emt 0:00:44]} gxf6 {[%emt 0:00:06]} 23. Ba4 {[%emt 0:00:43]} Rbc8 {[%emt 0:01:20]} 24. Bxc6 {[%emt 0:00:22]} Rxc6 {[%emt 0:00:11]} 25. Rfc1 {[%emt 0:00:19]} Rdc8 {[%emt 0:00:29]} 26. Ra4 {[%emt 0:05:02]} Rxc2 {[%emt 0:02:04]} 27. Rxc2 {[%emt 0:00:36]} Rxc2 {[%emt 0:00:05]} 28. Rb4 {[%emt 0:01:46]} Rc7 {[%emt 0:01:00]} 29. Rxd4 Rc1+ {[%emt 0:00:15]} 30. Kf2 {[%emt 0:01:51]} Rc2+ {[%emt 0:00:06]} 31. Kg3 {[%emt 0:00:46]} Rxb2 {[%emt 0:00:35]} 32. Rd7 {[%emt 0:00:19]} Rb5 {[%emt 0:03:13]} 33. a6 bxa6 34. Rxa7 {[%emt 0:01:48]} Ra5 {[%emt 0:00:45]} 35. Kf4 {[%emt 0:00:50]} Ra4+ {[%emt 0:01:16]} 36. Ke3 {[%emt 0:00:11]} Ra2 {[%emt 0:00:38]} 37. g3 {[%emt 0:00:09]} Ra3 {[%emt 0:01:42]} 38. f4 {[%emt 0:00:21]} Kg7 {[%emt 0:02:07]} 39. Kd4 {[%emt 0:00:27]} h5 {[%emt 0:01:21]} 40. Kc5 {[%emt 0:03:17]} Kg6 {[%emt 0:02:04]} 41. Kb6 {[%emt 0:01:32]} Rxd3 {[%emt 0:00:55]} 42. Rxa6 {[%emt 0:00:17]} Rd6+ {[%emt 0:00:23]} 43. Kb5 {[%emt 0:00:09]} Rxa6 {[%emt 0:00:06]} 44. Kxa6 {[%emt 0:00:05]} e5 {[%emt 0:00:48]} 45. fxe5 {[%emt 0:00:46]} fxe5 {[%emt 0:00:08]} 46. Kb5 {[%emt 0:00:05]} Kf5 {[%emt 0:00:13]} 47. Kc4 {[%emt 0:00:49]} Ke4 {[%emt 0:00:07]} 48. h4 {[%emt 0:00:55]} f5 {[%emt 0:00:14]} 49. Kc5 {[%emt 0:00:32]} f4 {[%emt 0:00:30]} 50. g4 {[%emt 0:00:38]} f3 {[%emt 0:00:11]} 51. g5 {[%emt 0:00:20]} f2 {[%emt 0:00:07]} 52. g6 {[%emt 0:00:04]} f1=Q {[%emt 0:00:19]} 53. g7 {[%emt 0:00:06]} Qf7 {[%emt 0:00:11]} 54. Kb4 {[%emt 0:00:35]} Qxg7 {[%emt 0:00:14]} 55. Kc3 {[%emt 0:00:16]} Qd7 {[%emt 0:00:14]} 56. Kc4 {[%emt 0:00:05]} Qc6+ {[%emt 0:00:14]} 57. Kb4 {[%emt 0:00:15]} Kd3 {[%emt 0:00:19]} 58. Ka5 {[%emt 0:00:15]} Qb7 {[%emt 0:00:18]} 59. Ka4 {[%emt 0:00:05]} Kc4 {[%emt 0:00:18]} 60. Ka3 {[%emt 0:00:09]} Qb3# 0-1

[Event "EYCC Open U8 2018"]
[Site "Riga"]
[Date "2018.08.23"]
[Round "4"]
[White "Villa Tornero, Alex"]
[Black "Hasanli, Ziya"]
[Result "1/2-1/2"]
[ECO "A02"]
[WhiteElo "1394"]
[BlackElo "1188"]
[Annotator "NA RC"]
[PlyCount "80"]
[EventDate "2018.08.20"]
[EventType "swiss"]
[EventCountry "LAT"]
[SourceTitle "playchess.com"]
[Source "ChessBase"]
[SourceQuality "1"]
[TimeControl "40/5400+30:1800+30"]

1. f4 {[%emt 0:01:25]} Nf6 {[%emt 0:01:49]} 2. e3 {[%emt 0:06:06]} e6 {[%emt 0:07:46]} 3. Nf3 {[%emt 0:05:29]} d5 {[%emt 0:05:48]} 4. b3 {[%emt 0:07:58]} c5 {[%emt 0:06:49]} 5. Bb2 {[%emt 0:06:19]} Nc6 {[%emt 0:06:06]} 6. Bb5 {[%emt 0:06:59]} Bd7 {[%emt 0:07:49]} 7. Bxc6 {[%emt 0:05:30]} Bxc6 {[%emt 0:03:09]} 8. Ne5 {[%emt 0:05:26]} Be7 {[%emt 0:13:15]} 9. O-O {[%emt 0:05:41]} d4 {[%emt 0:06:22]} 10. exd4 {[%emt 0:04:27]} cxd4 {[%emt 0:02:47]} 11. d3 {[%emt 0:04:23]} Qd5 {[%emt 0:03:44]} 12. Qf3 {[%emt 0:03:24]} Qxf3 {[%emt 0:02:59]} 13. Nxf3 {[%emt 0:00:25]} Bxf3 {[%emt 0:00:38]} 14. Rxf3 {[%emt 0:00:11]} Rd8 {[%emt 0:00:17]} 15. Nd2 {[%emt 0:00:22]} Bc5 {[%emt 0:01:40]} 16. f5 {[%emt 0:02:38]} O-O {[%emt 0:02:13]} 17. fxe6 {[%emt 0:01:46]} fxe6 {[%emt 0:00:10]} 18. Re1 {[%emt 0:00:07]} Rfe8 {[%emt 0:00:12]} 19. Ne4 {[%emt 0:00:56]} Nxe4 {[%emt 0:00:46]} 20. Rxe4 {[%emt 0:00:33]} e5 {[%emt 0:01:21]} 21. Rf5 {[%emt 0:04:16]} Bd6 {[%emt 0:07:25]} 22. Re2 {[%emt 0:05:02]} g6 {[%emt 0:03:48]} 23. Rf1 {[%emt 0:03:10]} Bf8 {[%emt 0:02:56]} 24. Bc1 {[%emt 0:00:31]} Bc5 {[%emt 0:01:23]} 25. Kh1 {[%emt 0:01:47]} Rf8 {[%emt 0:01:42]} 26. Ref2 {[%emt 0:02:49]} Rxf2 {[%emt 0:00:47]} 27. Rxf2 {[%emt 0:00:59]} e4 {[%emt 0:02:50]} 28. Kg1 {[%emt 0:10:42]} e3 {[%emt 0:03:23]} 29. Rf3 {[%emt 0:00:26]} Bb4 {[%emt 0:01:38]} 30. Kf1 {[%emt 0:01:09]} Bc3 {[%emt 0:02:15]} 31. Ke2 {[%emt 0:00:08]} Rf8 {[%emt 0:00:01]} 32. Ba3 {[%emt 0:01:13]} Rxf3 {[%emt 0:00:39]} 33. Kxf3 {[%emt 0:00:02]} Kf7 {[%emt 0:00:17]} 34. Bc5 {[%emt 0:00:11]} b6 {[%emt 0:00:04]} 35. Bd6 {[%emt 0:00:19]} Ke6 {[%emt 0:00:14]} 36. Bb8 {[%emt 0:00:04]} a6 {[%emt 0:00:16]} 37. Bc7 {[%emt 0:00:07]} b5 {[%emt 0:00:04]} 38. g4 {[%emt 0:00:31]} g5 {[%emt 0:00:22]} 39. Bd8 {[%emt 0:00:32]} h6 {[%emt 0:00:07]} 40. h4 {[%emt 0:00:00]} gxh4 {[%emt 0:00:00]} 1/2-1/2

[Event "EYCC Open U8 2018"]
[Site "Riga"]
[Date "2018.08.23"]
[Round "4"]
[White "Gordeev, Denis"]
[Black "Yonal, Timur"]
[Result "1-0"]
[ECO "A45"]
[WhiteElo "1333"]
[BlackElo "1446"]
[Annotator "NA RC"]
[PlyCount "107"]
[EventDate "2018.08.20"]
[EventType "swiss"]
[EventCountry "LAT"]
[SourceTitle "playchess.com"]
[Source "ChessBase"]
[SourceQuality "1"]
[TimeControl "40/5400+30:1800+30"]

1. d4 {[%emt 0:00:00]} Nf6 {[%emt 0:00:00]} 2. Nc3 {[%emt 0:00:00]} d5 {[%emt 0:00:00]} 3. Bf4 {[%emt 0:00:07]} g6 {[%emt 0:00:12]} 4. e3 {[%emt 0:00:18]} Bg7 {[%emt 0:00:09]} 5. h4 {[%emt 0:00:12]} Nh5 {[%emt 0:03:18]} 6. Bh2 {[%emt 0:04:32]} f5 {[%emt 0:00:47]} 7. Nf3 {[%emt 0:01:05]} c6 {[%emt 0:02:02]} 8. Be2 {[%emt 0:01:02]} Nf6 {[%emt 0:06:56]} 9. Ne5 {[%emt 0:00:55]} Nfd7 {[%emt 0:04:57]} 10. Nd3 {[%emt 0:01:41]} h5 {[%emt 0:06:01]} 11. Bf3 {[%emt 0:02:11]} Nf8 {[%emt 0:03:06]} 12. Ne2 {[%emt 0:01:36]} Be6 {[%emt 0:02:07]} 13. Nef4 {[%emt 0:00:38]} Nbd7 {[%emt 0:00:51]} 14. c3 {[%emt 0:05:20]} Bf7 {[%emt 0:04:04]} 15. Qc2 {[%emt 0:01:48]} Ne6 {[%emt 0:03:51]} 16. b3 {[%emt 0:02:07]} Nxf4 {[%emt 0:00:32]} 17. Bxf4 {[%emt 0:03:25]} Nf6 {[%emt 0:01:25]} 18. Be5 {[%emt 0:01:22]} Rg8 {[%emt 0:01:45]} 19. Rc1 {[%emt 0:02:12]} Ne4 {[%emt 0:00:50]} 20. Bxg7 {[%emt 0:01:48]} Rxg7 {[%emt 0:00:19]} 21. Ne5 {[%emt 0:00:41]} e6 {[%emt 0:01:07]} 22. Bxe4 {[%emt 0:01:24]} fxe4 {[%emt 0:00:15]} 23. Qe2 {[%emt 0:01:10]} Qe7 {[%emt 0:04:02]} 24. c4 {[%emt 0:02:11]} a5 {[%emt 0:06:21]} 25. c5 {[%emt 0:01:06]} Kd8 {[%emt 0:06:35]} 26. a3 {[%emt 0:01:23]} Kc7 {[%emt 0:00:11]} 27. Qb2 {[%emt 0:01:40]} Rgg8 {[%emt 0:00:34]} 28. g3 {[%emt 0:01:08]} Ra6 {[%emt 0:00:34]} 29. Ke2 {[%emt 0:00:22]} g5 {[%emt 0:01:44]} 30. Rcf1 {[%emt 0:06:41]} Be8 {[%emt 0:03:41]} 31. Qc3 {[%emt 0:03:47]} a4 {[%emt 0:00:37]} 32. b4 {[%emt 0:00:34]} gxh4 {[%emt 0:00:21]} 33. Rxh4 {[%emt 0:00:16]} Rg5 {[%emt 0:00:34]} 34. Qd2 {[%emt 0:01:11]} Ra8 {[%emt 0:02:28]} 35. Ke1 {[%emt 0:00:21]} Qg7 {[%emt 0:00:48]} 36. Kd1 {[%emt 0:01:34]} Bg6 {[%emt 0:01:36]} 37. Nxg6 {[%emt 0:04:53]} Qxg6 {[%emt 0:00:10]} 38. Rfh1 {[%emt 0:00:26]} Rf8 {[%emt 0:05:55]} 39. Ke1 {[%emt 0:01:39]} Rgf5 {[%emt 0:02:11]} 40. R1h2 {[%emt 0:00:00]} R8f6 {[%emt 0:00:00]} 41. Qe2 {[%emt 0:02:26]} Rf3 {[%emt 0:02:54]} 42. Rxh5 {[%emt 0:01:09]} Rf7 {[%emt 0:02:39]} 43. Rh8 {[%emt 0:07:28]} Qf6 {[%emt 0:01:14]} 44. b5 {[%emt 0:02:33]} Rf8 {[%emt 0:02:25]} 45. R2h7+ Kc8 {[%emt 0:02:47]} 46. Rxf8+ {[%emt 0:02:40]} Qxf8 {[%emt 0:00:19]} 47. bxc6 {[%emt 0:00:14]} Rf7 {[%emt 0:00:41]} 48. cxb7+ {[%emt 0:00:43]} Kb8 {[%emt 0:00:10]} 49. Qa6 {[%emt 0:01:11]} Kc7 {[%emt 0:01:01]} 50. Rxf7+ {[%emt 0:02:12]} Qxf7 {[%emt 0:00:12]} 51. Qa7 {[%emt 0:00:33]} Kc6 {[%emt 0:00:13]} 52. b8=Q {[%emt 0:02:05]} Qxf2+ {[%emt 0:00:23]} 53. Kxf2 {[%emt 0:00:11]} e5 {[%emt 0:00:04]} 54. Qac7# {[%emt 0:00:13]} 1-0